bitfinex-derivatives/quotes_ETHF0:USTF0_20250828
["timestamp","ask_amount","ask_price","bid_price","bid_amount"]
[1756397687157,3.9256,4520.9,4520.8,0.3981]
[1756397687363,3.9256,4520.9,4520.8,1.9887]
[1756397687667,2.3179,4520.9,4520.8,4.2672]
[1756397687866,3.9256,4521.7,4521.6,0.39802]
[1756397688064,3.9256,4521.7,4521.5,0.39803]
[1756397689362,3.9256,4521.7,4520.8,2.2785]
[1756397689764,3.9256,4521.7,4521.5,0.39803]
[1756397689967,1.6077,4521.7,4521.1,0.99517]
[1756397690164,0.0161698,4523.1,4522.7,0.39793]
[1756397690471,1.6077,4522.8,4522.7,0.39793]
[1756397690872,1.6238698,4523.1,4523.0,0.39791]
[1756397691261,1.6238698,4523.1,4523.0,1.29408016]
[1756397691767,1.6238698,4523.1,4523.0,5.16318016]
[1756397692173,3.9417698,4523.1,4523.0,2.88468016]
[1756397692468,3.9417698,4523.1,4523.0,2.17649335]
[1756397692971,3.9417698,4523.1,4523.0,0.58589335]
[1756397693372,3.9417698,4523.1,4523.0,2.17649335]
[1756397693568,3.9417698,4523.1,4523.0,4.45499335]
[1756397693967,3.9417698,4523.1,4523.0,0.58589335]
[1756397694771,3.9417698,4523.1,4523.0,0.18798335]
[1756397694975,3.9417698,4523.1,4522.6,2.2785]
[1756397694976,3.9417698,4523.1,4522.9,0.39791]
[1756397695273,3.9417698,4523.1,4522.9,0.87157149]
[1756397695471,3.9417698,4523.1,4522.3,2.2785]
[1756397695967,3.9417698,4523.1,4522.8,0.39792]
[1756397696272,3.9256,4522.9,4522.8,2.67642]
[1756397696475,3.9256,4522.9,4522.8,4.26702]
[1756397696768,0.0161698,4523.1,4523.0,0.39791]
[1756397697073,0.0161698,4523.1,4523.0,4.26701]
[1756397697074,1.6238698,4523.1,4523.0,4.26701]
[1756397697767,0.0161698,4523.1,4523.0,4.26701]
[1756397698369,0.0161698,4523.1,4523.0,3.16091319]
[1756397698569,1.6238698,4523.1,4523.0,3.55882319]
[1756397699068,1.6238698,4523.1,4523.0,0.88241319]
[1756397699069,3.9417698,4523.1,4523.0,0.88241319]
[1756397699273,1.6238698,4523.1,4522.6,2.2785]
[1756397699472,3.9256,4523.0,4522.9,3.8691]
[1756397699666,3.9256,4523.0,4522.9,4.26701]
[1756397700068,0.0161698,4523.1,4522.9,4.26701]
[1756397700268,0.0161698,4523.1,4523.0,3.8691]
[1756397700474,3.9417698,4523.1,4523.0,3.8691]
[1756397700976,1.6238698,4523.1,4523.0,3.8691]
[1756397701269,0.0161698,4523.1,4523.0,3.8691]
[1756397701475,0.0161698,4523.1,4523.0,2.76300319]
[1756397702465,3.9417698,4523.1,4523.0,2.76300319]
[1756397703174,3.9417698,4523.1,4523.0,1.5906]
[1756397703372,2.3179,4523.1,4523.0,1.5906]
[1756397703571,0.99438,4524.9,4523.0,1.5906]
[1756397703572,0.99396,4526.7,4524.5,0.39777]
[1756397703765,1.6077,4524.9,4524.8,4.26685]
[1756397704166,1.98761,4527.5,4524.8,4.26685]
[1756397704167,1.6077,4525.8,4524.8,4.0]
[1756397704375,1.05561858,4525.8,4524.7,0.99439]
[1756397704572,1.05561858,4525.8,4525.3,0.3977]
[1756397704775,1.05561858,4525.8,4525.4,0.39769]
[1756397704975,1.05561858,4525.8,4525.2,0.39771]
[1756397705171,1.05561858,4525.8,4525.3,0.3977]
[1756397705479,1.05561858,4525.8,4525.2,0.87611188]
[1756397705680,3.9256,4525.3,4525.2,1.27382188]
[1756397705974,3.9256,4525.3,4525.2,5.14292188]
[1756397706374,2.3179,4525.3,4525.2,5.14292188]
[1756397706575,0.39759,4526.7,4525.6,0.39768]
[1756397706776,1.6516,4525.8,4525.7,1.93707]
[1756397706977,1.6516,4525.8,4525.5,0.39768]
[1756397707177,0.99392,4526.9,4525.3,2.3357]
[1756397707178,3.9725,4525.4,4525.3,2.3357]
[1756397707478,2.3209,4525.3,4525.2,1.27382188]
[1756397707675,3.9725,4525.3,4525.2,2.3357]
[1756397707879,3.9725,4525.0,4524.9,0.39773]
[1756397708073,3.9725,4525.0,4524.9,1.27322278]
[1756397708271,3.9725,4525.0,4524.9,0.87549278]
[1756397708467,1.6516,4525.0,4524.6,43.1357]
[1756397708678,3.9725,4524.7,4524.6,43.1357]
[1756397708867,3.9725,4524.7,4524.6,4.27286]
[1756397709072,1.6516,4525.0,4524.9,1.93714]
[1756397709672,3.9725,4525.0,4524.9,1.93714]
[1756397709873,3.9725,4525.0,4524.7,2.3357]
[1756397710074,3.9725,4525.0,4524.7,0.39775]
[1756397710269,3.9725,4525.0,4524.6,0.87673775]
[1756397710478,1.6516,4525.0,4524.8,0.39774]
[1756397710678,3.9725,4524.9,4524.8,3.56448319]
[1756397711475,3.9725,4524.9,4524.6,0.39776]
[1756397711677,1.6516,4524.7,4524.6,0.39776]
[1756397711875,4.1315,4524.7,4524.6,0.39776]
[1756397712077,2.4799,4524.6,4524.5,2.83698212]
[1756397712278,4.1315,4524.6,4524.5,2.43921212]
[1756397712587,4.1315,4523.9,4523.8,1.93723]
[1756397712773,0.221,4526.1,4523.8,3.22348869]
[1756397713078,4.1315,4524.2,4524.1,3.8751]
[1756397713680,4.1315,4524.2,4524.1,2.76900319]
[1756397714979,4.1315,4524.2,4523.5,2.3357]
[1756397715183,1.6516,4523.5,4523.4,32.74943847]
[1756397715378,4.1315,4523.5,4523.4,32.74943847]
[1756397715584,4.1315,4523.5,4523.4,35.08513847]
[1756397716082,0.39771,4525.3,4523.6,0.99464]
[1756397716386,1.6516,4524.6,4524.5,4.27287]
[1756397716780,4.1315,4524.6,4524.5,3.16677319]
[1756397716980,4.1315,4524.6,4524.5,3.56454319]
[1756397717681,1.6516,4524.6,4524.5,3.56454319]
[1756397717886,4.1315,4525.0,4524.9,3.8751]
[1756397718580,4.1315,4525.0,4524.9,1.5394]
[1756397718783,4.1315,4525.0,4524.9,3.8751]
[1756397718981,4.1315,4525.0,4524.9,1.5394]
[1756397719687,4.1315,4525.0,4524.9,2.76900319]
[1756397720079,4.1315,4525.0,4524.9,0.43330319]
[1756397720478,4.1315,4525.0,4524.6,2.73346]
[1756397720680,1.6516,4524.8,4524.7,3.8751]
[1756397720983,4.1315,4525.2,4525.1,3.8751]
[1756397721288,4.1315,4525.2,4524.7,2.73345]
[1756397721489,4.1315,4525.1,4525.0,1.5394]
[1756397721783,4.1315,4525.1,4525.0,3.8751]
[1756397721987,1.6516,4525.6,4525.5,4.27278]
[1756397722188,4.1315,4525.6,4525.5,4.27278]
[1756397722384,8.1315,4525.6,4524.6,0.39776]
[1756397722590,4.1315,4524.6,4524.5,4.27287]
[1756397722786,4.1315,4524.6,4524.5,3.16677319]
[1756397723689,4.1315,4524.8,4524.7,1.93716]
[1756397723885,2.4799,4524.8,4524.7,1.93716]
[1756397724084,0.99405,4526.3,4524.2,40.8]
[1756397724085,0.39769,4525.5,4524.8,0.39774]
[1756397724391,2.4799,4525.3,4524.7,0.39775]
[1756397724592,4.1315,4524.8,4524.7,1.93715]
[1756397724794,4.1315,4524.8,4524.7,4.27285]
[1756397724987,2.4799,4526.0,4524.8,2.3357]
[1756397725293,4.1315,4524.9,4524.8,3.8751]
[1756397725489,2.4799,4524.8,4524.2,43.1357]
[1756397725684,0.9942,4525.6,4524.2,43.1357]
[1756397725685,4.1315,4524.3,4524.2,41.1978]
[1756397725889,4.1315,4524.3,4524.2,4.2729]
[1756397727182,2.4799,4525.2,4524.3,0.39778]
[1756397727390,1.6516,4524.3,4524.2,3.8751]
[1756397727589,4.1315,4524.3,4524.2,3.8751]
[1756397728094,4.1315,4524.3,4523.6,3.8751]
[1756397728095,4.1315,4523.7,4523.6,3.8751]
[1756397728395,4.1315,4523.7,4523.6,1.5394]
[1756397728792,4.1315,4523.7,4523.6,0.43330319]
[1756397729096,1.6516,4523.5,4523.4,32.74943847]
[1756397729391,4.1315,4523.5,4523.4,31.847]
[1756397730604,4.1315,4523.5,4523.4,32.73634863]
[1756397731702,4.1315,4523.5,4523.4,31.847]
[1756397731999,4.1315,4523.5,4523.4,30.74090319]
[1756397732189,0.3978,4524.1,4523.4,32.57230319]
[1756397732493,2.4799,4524.0,4523.9,1.5394]
[1756397732699,4.1315,4524.0,4523.9,1.5394]
[1756397733094,4.1315,4524.0,4523.4,31.61796238]
[1756397733300,4.1315,4523.5,4523.4,33.44936238]
[1756397733496,4.1315,4523.5,4523.4,30.74090319]
[1756397734900,4.1315,4523.5,4523.4,31.46620638]
[1756397736299,2.4845,4524.9,4523.5,0.39785]
[1756397736495,2.4845,4524.9,4523.6,1.657]
[1756397736496,1.5898,4523.7,4523.6,1.657]
[1756397736700,1.5898,4523.7,4523.6,3.4846]
[1756397736898,4.0743,4523.7,4523.6,3.4846]
[1756397737099,4.0743,4523.7,4523.6,1.657]
[1756397737898,4.0743,4523.7,4523.6,3.4846]
[1756397738109,4.0743,4523.7,4523.6,2.37850319]
[1756397738700,4.0743,4523.7,4523.6,2.77634319]
[1756397738897,0.99422,4525.4,4523.6,4.22105999]
[1756397739198,1.5898,4524.2,4524.1,2.2737]
[1756397739398,2.4845,4524.4,4524.3,2.27368]
[1756397739898,2.4845,4524.4,4524.3,1.8759]
[1756397741105,4.0743,4524.4,4523.7,1.97232403]
[1756397741606,4.0743,4524.4,4523.6,1.97232403]
[1756397741906,4.0743,4524.4,4523.6,2.37016403]
[1756397742107,4.0743,4524.4,4523.7,0.39783]
[1756397742297,4.0743,4524.4,4523.6,1.97232403]
[1756397742502,4.0743,4524.4,4523.9,0.39782]
[1756397742903,4.0743,4524.4,4523.7,1.97232403]
[1756397743901,4.0743,4523.5,4523.4,31.60713041]
[1756397744097,4.0743,4523.5,4523.4,28.52870957]
[1756397747010,4.0743,4523.5,4523.4,28.92656957]
[1756397747302,4.0743,4523.5,4523.4,27.42261276]
[1756397747502,2.4845,4523.5,4523.4,27.82047276]
[1756397747810,2.4845,4523.5,4523.4,27.42261276]
[1756397750207,2.4845,4523.5,4523.4,26.31651595]
[1756397750406,1.5898,4523.2,4523.1,0.87965737]
[1756397750709,1.5898,4523.2,4523.0,0.7228]
[1756397750710,4.0743,4523.1,4523.0,0.7228]
[1756397752107,2.4845,4524.0,4523.2,0.39787]
[1756397752511,1.98854,4525.2,4523.0,0.7228]
[1756397752716,4.0743,4523.1,4523.0,0.7228]
[1756397753203,4.0743,4523.1,4522.7,0.39792]
[1756397753399,4.0743,4523.1,4522.5,0.8914043]
[1756397753603,4.0743,4523.1,4522.3,0.39795]
[1756397753805,4.0743,4523.1,4522.2,1.28114004]
[1756397754004,4.47219,4523.1,4522.2,1.28114004]
[1756397754205,4.0743,4523.1,4522.2,0.88318004]
[1756397754499,4.0743,4523.1,4522.2,0.39796]
[1756397754707,4.0743,4523.1,4522.2,1.28921526]
[1756397754911,4.0743,4523.1,4522.2,0.39796]
[1756397755105,1.5898,4522.3,4522.2,0.86596013]
[1756397755408,4.0743,4522.2,4521.9,0.6231596]
[1756397755609,4.0743,4522.2,4522.0,0.39798]
[1756397756005,0.39787,4523.4,4522.2,0.39796]
[1756397756204,0.99452,4524.1,4522.0,0.16329688]
[1756397756205,2.4845,4523.3,4522.0,0.16329688]
[1756397756408,2.4845,4523.3,4521.9,1.97232403]
[1756397756609,2.4845,4523.3,4522.5,0.39794]
[1756397757413,2.4845,4523.3,4522.4,0.39794]
[1756397757810,2.4845,4523.3,4522.8,0.39791]
[1756397758006,2.4845,4523.3,4522.6,0.39792]
[1756397758408,0.39788,4523.2,4522.3,0.39795]
[1756397758614,4.0743,4522.3,4522.2,0.39796]
[1756397759016,2.4845,4522.3,4522.2,0.39796]
[1756397759218,2.4845,4523.4,4522.1,1.26416722]
[1756397759414,2.88236,4523.4,4522.1,1.26416722]
[1756397759716,2.4845,4523.2,4522.3,0.39794]
[1756397760218,2.4845,4523.2,4522.4,0.39794]
[1756397760814,1.5898,4523.1,4522.5,0.2211]
[1756397761019,2.4845,4524.4,4522.1,1.98987]
[1756397761211,2.4845,4524.4,4522.2,2.98232364]
[1756397761413,2.4845,4524.4,4522.7,0.99478]
[1756397761615,0.39776,4524.6,4522.6,40.8]
[1756397761919,2.88226,4524.5,4523.5,0.39784]
[1756397762309,2.4845,4525.1,4524.1,0.39779]
[1756397762513,1.5898,4524.3,4524.2,0.39779]
[1756397762719,4.0743,4524.3,4523.5,1.21562]
[1756397762916,2.4845,4524.2,4524.1,0.39779]
[1756397763615,0.99409,4526.0,4523.7,40.8]
[1756397763821,2.4845,4525.2,4524.2,0.39778]
[1756397764322,0.39773,4524.9,4523.8,0.39781]
[1756397764513,4.0743,4523.8,4523.7,40.8]
[1756397764916,4.0743,4523.4,4522.8,0.39791]
[1756397765121,4.0743,4523.4,4522.2,2.76125364]
[1756397765323,4.0743,4523.4,4523.3,30.73690319]
[1756397765618,2.4845,4523.3,4522.3,2.76125364]
[1756397765818,2.4845,4523.3,4522.3,2.98233364]
[1756397766017,2.4845,4523.3,4522.2,72.641]
[1756397766018,2.3881,4523.8,4522.4,0.2211]
[1756397766211,2.3881,4523.1,4522.7,0.39792]
[1756397766417,2.3881,4523.0,4522.8,0.39791]
[1756397766623,1.511,4523.0,4522.8,0.39791]
[1756397766825,2.3881,4522.9,4522.8,0.39791]
[1756397767119,2.3881,4522.8,4522.2,75.40225364]
[1756397767321,2.3881,4524.2,4522.3,0.39795]
[1756397767619,1.511,4522.8,4522.7,0.39792]
[1756397767923,3.8991,4524.2,4523.6,0.39784]
[1756397768112,3.8991,4524.2,4523.9,0.39781]
[1756397768313,1.511,4524.2,4523.3,2.97657679]
[1756397768519,2.3881,4524.1,4523.5,0.39784]
[1756397768916,2.3881,4524.1,4523.3,0.39786]
[1756397769110,3.8991,4523.3,4523.2,1.98190679]
[1756397769315,3.8991,4523.3,4523.1,2.37978679]
[1756397769722,3.8991,4523.3,4523.1,41.19788]
[1756397770021,3.8991,4523.3,4523.1,40.8]
[1756397770022,1.511,4523.3,4523.1,40.8]
[1756397770321,2.3881,4523.2,4523.1,42.78190679]
[1756397770522,2.3881,4523.2,4523.1,40.8]
[1756397770722,0.00401022,4524.3,4523.1,40.8]
[1756397770923,2.3881,4524.2,4523.2,0.39787]
[1756397771125,2.3881,4524.2,4523.1,40.8]
[1756397771126,2.3881,4524.2,4523.3,0.39786]
[1756397771422,2.3881,4524.2,4523.1,1.2759653]
[1756397771623,1.511,4523.5,4523.4,0.39785]
[1756397771824,3.8991,4523.5,4523.4,0.39785]
[1756397772220,3.8991,4523.8,4523.7,0.39783]
[1756397773125,2.3881,4523.7,4523.5,0.39784]
[1756397773320,2.3881,4524.2,4523.3,0.99467]
[1756397773521,2.3881,4524.1,4524.0,0.3978]
[1756397773717,0.00401022,4524.3,4524.2,0.39779]
[1756397774418,1.511,4524.9,4524.2,3.69171851]
[1756397774629,1.511,4525.2,4525.1,0.4907]
[1756397774824,1.511,4525.2,4525.1,0.7974]
[1756397775218,1.511,4525.2,4525.1,0.4907]
[1756397776627,1.511,4525.2,4525.0,0.39771]
[1756397776830,3.8991,4525.1,4525.0,0.39771]
[1756397777019,1.511,4524.9,4524.8,1.19513]
[1756397777214,1.511,4524.9,4523.9,34.60025364]
[1756397777430,2.3881,4524.8,4524.0,0.52772]
[1756397777726,3.8991,4524.5,4524.4,0.39776]
[1756397780527,1.511,4524.5,4524.0,1.97693415]
[1756397780727,2.3881,4524.4,4524.3,0.39778]
[1756397780919,3.8991,4524.4,4524.3,0.39778]
[1756397781126,1.511,4524.1,4524.0,1.97693415]
[1756397781325,3.8991,4524.1,4524.0,1.97693415]
[1756397781529,3.8991,4524.1,4524.0,40.8]
[1756397783322,2.3881,4525.4,4524.6,0.39775]
[1756397783628,4.12012,4524.8,4524.0,40.78034851]
[1756397783830,3.8991,4524.8,4524.6,0.39775]
[1756397784220,1.511,4524.8,4524.6,0.39775]
[1756397784424,3.8991,4524.8,4524.6,0.39775]
[1756397784620,2.3881,4524.7,4524.6,41.19775]
[1756397785320,1.511,4525.0,4524.9,0.39772]
[1756397785525,3.8991,4525.0,4524.9,0.39772]
[1756397785720,1.511,4525.1,4525.0,0.39771]
[1756397785920,2.3881,4525.1,4525.0,0.39771]
[1756397786133,0.9938,4527.3,4524.6,41.79437]
[1756397786134,1.66074994,4525.6,4525.4,0.39768]
[1756397786331,3.8991,4525.5,4525.4,0.39768]
[1756397786635,4.12012,4526.1,4525.1,2.97119415]
[1756397786929,3.8991,4526.0,4525.9,0.39763]
[1756397787126,1.866753,4526.0,4525.9,0.39763]
[1756397787327,0.3975,4527.5,4525.9,3.90793]
[1756397787633,0.99353,4528.5,4526.1,2.24381]
[1756397787834,1.62292,4526.5,4526.4,1.6641]
[1756397788031,1.62292,4526.5,4526.4,3.5103]
[1756397788332,1.511,4526.5,4526.4,3.5103]
[1756397788627,1.511,4526.5,4526.4,4.4101714]
[1756397788821,1.93120149,4526.5,4526.4,0.8998714]
[1756397789026,1.511,4526.5,4526.4,0.39759]
[1756397789329,0.99355,4528.4,4526.1,3.5103]
[1756397789330,3.8991,4526.2,4526.1,3.5103]
[1756397789531,3.8991,4526.2,4526.1,4.60742568]
[1756397789729,3.8991,4526.2,4526.1,1.09712568]
[1756397789933,1.511,4526.2,4525.7,40.8]
[1756397790431,3.8991,4525.9,4525.8,1.9303]
[1756397790732,3.8991,4525.9,4525.8,2.80348105]
[1756397791133,3.8991,4525.9,4525.8,0.87318105]
[1756397791329,3.8991,4525.9,4525.8,1.9303]
[1756397791528,3.8991,4525.9,4525.8,2.15503259]
[1756397791726,2.3881,4525.9,4525.8,6.15503259]
[1756397792129,2.3881,4525.9,4525.8,3.01707793]
[1756397792333,3.8991,4525.9,4525.8,3.01707793]
[1756397792532,3.8991,4525.9,4525.8,2.27467793]
[1756397792729,3.8991,4525.9,4525.8,1.08677793]
[1756397792926,3.8991,4525.9,4525.7,41.19765]
[1756397793230,2.3881,4525.8,4525.7,41.19765]
[1756397793625,2.3881,4525.8,4525.7,42.06924023]
[1756397794230,1.511,4526.3,4526.2,0.3976]
[1756397794532,4.20738149,4526.3,4526.0,0.39762]
[1756397794733,4.01102,4526.1,4526.0,0.39762]
[1756397794936,2.3881,4526.0,4525.9,0.39763]
[1756397795536,3.8991,4525.9,4525.8,0.22254087]
[1756397795737,3.8991,4525.9,4525.7,1.26924023]
[1756397795934,1.511,4526.2,4526.1,0.39761]
[1756397796234,3.89,4526.1,4526.0,0.39762]
[1756397796937,3.89,4526.1,4525.7,40.8]
[1756397796938,3.89,4525.8,4525.7,40.8]
[1756397797135,2.3463,4525.7,4525.6,31.831]
[1756397797336,2.45822,4525.7,4525.6,31.831]
[1756397797640,2.3463,4525.7,4525.6,31.831]
[1756397798354,6.65458149,4525.7,4525.6,29.3309]
[1756397798749,6.65458149,4525.7,4525.6,28.22709851]
[1756397799051,2.65458149,4525.7,4525.6,28.62475851]
[1756397799649,2.3463,4525.7,4525.6,30.76405851]
[1756397799847,0.99363,4528.0,4526.4,0.39759]
[1756397800046,3.89,4526.5,4526.2,0.3976]
[1756397800354,3.89,4526.5,4525.7,0.99411]
[1756397800355,3.89,4526.5,4526.3,0.39759]
[1756397800654,4.19828149,4526.4,4526.3,0.39759]
[1756397800849,4.00192,4526.4,4526.3,0.39759]
[1756397801050,3.89,4526.4,4526.3,0.39759]
[1756397801249,4.19828149,4526.4,4526.3,4.03879]
[1756397801650,3.89,4526.4,4526.3,4.03879]
[1756397801950,3.89,4526.4,4526.3,3.33257851]
[1756397803552,3.89,4526.4,4526.3,1.19327851]
[1756397803752,2.3463,4526.3,4526.0,0.3976]
[1756397803958,1.5437,4526.2,4526.1,0.39759]
[1756397804253,4.00192,4526.2,4526.1,0.39759]
[1756397804447,4.00192,4526.2,4525.6,29.66019851]
[1756397804448,3.89,4526.2,4526.0,0.3976]
[1756397804955,1.5437,4525.4,4525.3,0.89999359]
[1756397805251,1.5437,4526.4,4526.3,1.5019]
[1756397805646,1.5437,4526.4,4526.3,3.9066]
[1756397805855,2.3463,4527.7,4526.0,2.4047]
[1756397806053,4.00192,4526.8,4526.7,1.5019]
[1756397806452,3.89,4526.8,4526.7,1.5019]
[1756397807349,4.31020149,4526.8,4526.7,1.5019]
[1756397807550,1.96390149,4526.8,4526.3,0.39758]
[1756397807757,3.89,4526.5,4526.4,3.9066]
[1756397808057,3.89,4526.5,4526.4,2.80279851]
[1756397810457,3.89,4526.9,4526.8,3.77244]
[1756397810757,1.5437,4527.1,4527.0,1.89942]
[1756397810956,1.5437,4527.1,4527.0,3.20031851]
[1756397811158,1.65562,4527.1,4527.0,3.20031851]
[1756397811759,1.65562,4527.1,4527.0,0.79561851]
[1756397811962,1.5437,4527.6,4527.5,1.5019]
[1756397812256,1.5437,4527.6,4527.5,4.30407]
[1756397812660,1.5437,4527.6,4527.5,4.30408]
[1756397812857,3.89,4527.6,4527.5,3.9066]
[1756397813258,1.5437,4528.0,4527.9,1.5019]
[1756397813462,3.89,4528.0,4527.9,1.5019]
[1756397813664,4.00192,4528.0,4527.9,1.5019]
[1756397813865,4.00192,4528.0,4527.9,3.9066]
[1756397814161,4.00192,4528.0,4527.9,2.80279851]
[1756397814363,4.31020149,4528.0,4527.4,2.4047]
[1756397814564,3.89,4527.5,4527.4,3.9066]
[1756397814765,3.89,4527.5,4527.4,44.7066]
[1756397815256,3.89,4527.5,4527.4,3.9066]
[1756397815957,4.19828149,4527.5,4527.4,1.5019]
[1756397816171,1.5437,4527.2,4527.1,3.9066]
[1756397816553,3.89,4527.2,4527.1,4.30411]
[1756397816953,4.19828149,4527.2,4526.8,42.77693415]
[1756397817263,3.89,4526.8,4526.7,4.30414]
[1756397817467,3.89,4526.8,4526.7,3.9066]
[1756397819364,3.2568543,4526.8,4526.7,3.9066]
[1756397819665,0.39743,4528.1,4526.7,2.4047]
[1756397819865,0.30828149,4528.0,4527.1,1.5019]
[1756397820067,0.11192,4527.5,4527.4,3.20027851]
[1756397820267,1.5437,4527.5,4527.4,3.20027851]
[1756397820470,1.65562,4527.5,4527.4,0.79557851]
[1756397820861,1.65562,4527.5,4527.1,0.39751]
[1756397821167,1.5437,4527.2,4527.1,1.89941]
[1756397821369,4.00192,4527.2,4527.1,1.5019]
[1756397821564,4.19828149,4527.2,4527.1,3.9066]
[1756397822257,4.04720375,4527.2,4527.1,3.9066]
[1756397823065,1.5437,4526.4,4526.3,3.9066]
[1756397823367,3.89,4526.4,4526.3,2.80279851]
[1756397823564,1.5437,4526.8,4526.7,0.39754]
[1756397823872,2.3463,4528.5,4526.6,0.99389]
[1756397824063,3.89,4527.3,4527.2,1.8994]
[1756397824262,1.5437,4527.7,4527.6,1.89937]
[1756397824464,1.85198149,4527.7,4527.6,1.5019]
[1756397824863,4.19828149,4527.7,4527.6,1.5019]
[1756397825169,8.19828149,4527.7,4527.0,0.39752]
[1756397825370,3.89,4527.0,4526.9,0.39752]
[1756397825566,4.00192,4527.0,4526.9,0.39752]
[1756397825769,4.19828149,4527.0,4526.6,0.39755]
[1756397825967,4.11762,4526.8,4526.7,0.39754]
[1756397826159,4.11762,4526.8,4526.7,0.90773851]
[1756397826358,4.0057,4526.8,4526.7,1.30527851]
[1756397826565,4.0057,4526.8,4526.2,1.97845818]
[1756397826760,1.5928,4526.6,4526.5,0.39756]
[1756397826965,4.0548,4526.6,4526.3,0.39758]
[1756397827275,4.0548,4526.6,4526.4,0.39757]
[1756397827571,1.5928,4526.3,4526.2,43.27549]
[1756397827773,4.0548,4526.3,4526.2,43.27549]
[1756397828268,4.36308149,4526.3,4526.2,45.25394818]
[1756397828470,4.36308149,4526.3,4526.2,4.08949]
[1756397828971,0.39743,4528.1,4526.2,4.0]
[1756397829170,4.0548,4526.8,4526.7,2.98562851]
[1756397829365,4.0548,4526.8,4526.7,3.38315851]
[1756397829667,0.99335,4529.0,4526.9,1.614]
[1756397829875,1.5928,4527.0,4526.9,4.37702]
[1756397830271,1.90108149,4527.0,4526.6,4.34395818]
[1756397830470,1.5928,4526.7,4526.5,0.39755]
[1756397830677,1.5928,4526.7,4526.5,2.76305]
[1756397830876,1.5928,4526.7,4526.6,1.614]
[1756397831078,1.5928,4526.7,4526.5,0.39755]
[1756397831275,1.5928,4526.2,4526.1,1.97845818]
[1756397831470,1.5928,4526.2,4525.8,34.58325364]
[1756397831471,1.5928,4526.2,4525.8,34.98086364]
[1756397831671,4.0548,4526.0,4525.9,2.01161]
[1756397831970,4.0548,4526.0,4525.9,4.37711]
[1756397832372,4.0548,4526.0,4525.9,0.90780851]
[1756397832567,1.5928,4525.3,4525.2,2.76125364]
[1756397832764,2.462,4525.2,4524.3,2.76325]
[1756397832970,4.0548,4524.4,4524.3,3.9795]
[1756397833172,4.0548,4524.4,4524.3,2.35891167]
[1756397833371,4.0548,4524.4,4524.3,0.74491167]
[1756397833569,1.5928,4524.4,4523.9,2.3655]
[1756397833768,4.0548,4524.0,4523.9,3.9795]
[1756397833981,4.16672,4524.0,4523.9,0.75411544]
[1756397834278,4.16672,4524.0,4523.5,34.1795]
[1756397834279,2.462,4523.9,4523.5,34.1795]
[1756397834479,4.0548,4523.6,4523.5,34.90947966]
[1756397834978,4.16672,4523.6,4523.5,32.54397966]
[1756397835177,4.16672,4523.6,4523.5,34.90947966]
[1756397835379,2.462,4524.9,4523.5,33.80567817]
[1756397835574,0.11192,4523.8,4523.7,1.614]
[1756397835777,4.0548,4524.6,4524.5,1.614]
[1756397836076,0.19714157,4524.6,4524.2,0.39775]
[1756397836277,4.0548,4524.5,4524.4,0.39774]
[1756397836478,4.0548,4524.5,4524.4,4.37724]
[1756397836878,4.16672,4524.5,4524.4,1.614]
[1756397837173,4.16672,4524.5,4524.4,3.9795]
[1756397837377,1.70472,4524.5,4524.4,3.9795]
[1756397837681,2.462,4524.4,4524.1,0.39776]
[1756397837975,0.99396,4526.3,4524.0,0.0033158]
[1756397837976,4.0548,4524.1,4524.0,0.0033158]
[1756397838177,4.16672,4524.1,4524.0,0.0033158]
[1756397838482,4.16672,4524.1,4524.0,0.51351431]
[1756397838876,0.11192,4524.1,4524.0,2.48921431]
[1756397839073,2.462,4524.8,4524.0,1.9757]
[1756397839280,4.0548,4524.8,4524.7,0.39771]
[1756397839481,0.0033158,4524.9,4524.8,1.9757]
[1756397839677,0.39753,4526.9,4525.2,1.614]
[1756397839978,9.93499,4528.4,4524.3,0.99437]
[1756397839979,0.19676539,4526.8,4526.2,0.39758]
[1756397840274,0.19676539,4526.8,4524.5,1.98866]
[1756397840275,1.5928,4526.3,4525.9,2.3655]
[1756397840482,1.5928,4525.9,4525.3,2.3655]
[1756397840683,1.5928,4525.7,4525.6,0.39763]
[1756397840878,1.5928,4525.7,4525.6,2.01163]
[1756397841077,0.99349,4528.4,4526.0,0.3976]
[1756397841277,0.39747,4527.5,4526.1,0.39759]
[1756397841471,0.11192,4526.2,4526.1,1.614]
[1756397841875,4.0548,4526.2,4525.6,40.8]
[1756397842078,4.0548,4526.0,4525.9,2.0116]
[1756397842382,2.462,4527.5,4526.4,0.39756]
[1756397842583,2.462,4526.4,4525.8,0.39761]
[1756397842778,1.5928,4525.9,4525.8,0.39761]
[1756397842984,4.0548,4525.9,4525.8,0.39761]
[1756397843281,2.462,4525.9,4525.8,2.01161]
[1756397843481,2.85951,4527.1,4525.8,2.32611]
[1756397843678,4.0548,4526.0,4525.9,3.94011]
[1756397844477,2.462,4526.0,4525.9,2.83630851]
[1756397844782,2.462,4526.0,4525.9,3.23391851]
[1756397845485,0.39749,4527.3,4526.0,0.3976]
[1756397845787,4.0548,4526.2,4525.9,1.9285]
[1756397846080,0.19688974,4527.2,4525.8,2.01161]
[1756397846081,4.0548,4525.9,4525.8,2.01161]
[1756397846284,0.11192,4526.1,4526.0,2.0116]
[1756397846484,1.5928,4526.1,4526.0,2.0116]
[1756397846684,2.462,4526.0,4525.5,0.39764]
[1756397846893,0.99368,4527.5,4525.2,31.824]
[1756397846894,2.462,4525.3,4525.2,31.824]
[1756397847483,2.462,4525.3,4525.2,30.72019851]
[1756397847788,2.57392,4525.3,4525.2,30.72019851]
[1756397847975,2.462,4525.3,4525.2,30.72019851]